[Event "Nordic Chess-ch 2019"]
[Site "Sarpsborg"]
[Date "2019.06.27"]
[Round "9.36"]
[White "Stabbetorp, Hans"]
[Black "Andersen, Harry"]
[Result "1/2-1/2"]
[ECO "D02"]
[WhiteElo "1767"]
[BlackElo "1905"]
[Annotator "NA RC"]
[PlyCount "78"]
[EventDate "2019.06.21"]
[EventType "swiss"]
[EventCountry "NOR"]
[SourceTitle "playchess.com"]
[Source "ChessBase"]
[SourceQuality "1"]
[TimeControl "40/5400+30:1800+30"]

1. d4 {[%emt 0:00:00]} Nf6 {[%emt 0:00:00]} 2. Nf3 {[%emt 0:00:00]} g6 {[%emt 0:00:00]} 3. Bf4 {[%emt 0:00:00]} Bg7 {[%emt 0:00:04]} 4. e3 {[%emt 0:00:00]} O-O {[%emt 0:00:15]} 5. Nbd2 {[%emt 0:00:00]} d5 {[%emt 0:00:18]} 6. h3 {[%emt 0:00:31]} c5 {[%emt 0:00:37]} 7. c3 {[%emt 0:01:47]} c4 {[%emt 0:00:19]} 8. Be2 {[%emt 0:00:34]} b5 {[%emt 0:01:08]} 9. O-O {[%emt 0:00:41]} Nc6 {[%emt 0:01:04]} 10. b3 {[%emt 0:04:16]} h6 {[%emt 0:03:29]} 11. a4 {[%emt 0:02:00]} cxb3 {[%emt 0:15:12]} 12. axb5 {[%emt 0:00:21]} Na5 {[%emt 0:02:56]} 13. Nxb3 {[%emt 0:00:13]} Nc4 {[%emt 0:01:32]} 14. Bxc4 {[%emt 0:01:59]} dxc4 {[%emt 0:00:14]} 15. Na5 {[%emt 0:00:23]} Nd5 {[%emt 0:03:47]} 16. Bg3 {[%emt 0:04:03]} Nxc3 {[%emt 0:00:34]} 17. Qc2 {[%emt 0:00:06]} Nxb5 {[%emt 0:04:30]} 18. Qxc4 {[%emt 0:01:04]} Nd6 {[%emt 0:00:43]} 19. Qb4 {[%emt 0:04:05]} Nf5 {[%emt 0:06:07]} 20. Bh2 {[%emt 0:01:43]} Qd5 {[%emt 0:04:28]} 21. Rfc1 {[%emt 0:04:44]} Nd6 {[%emt 0:03:13]} 22. Nc6 {[%emt 0:00:56]} Bf6 {[%emt 0:02:48]} 23. Rxa7 {[%emt 0:03:14]} Rxa7 {[%emt 0:00:30]} 24. Nxa7 {[%emt 0:00:02]} Bxh3 {[%emt 0:00:18]} 25. Rc5 {[%emt 0:01:19]} Qa2 {[%emt 0:03:33]} 26. gxh3 {[%emt 0:10:46]} Ne4 {[%emt 0:04:25]} 27. Bg3 {[%emt 0:06:03]} Nxc5 {[%emt 0:05:49]} 28. Qxc5 {[%emt 0:00:06]} Ra8 {[%emt 0:01:14]} 29. Nc6 {[%emt 0:00:26]} Qb1+ {[%emt 0:00:29]} 30. Kg2 {[%emt 0:00:12]} Ra1 {[%emt 0:01:15]} 31. Ng1 {[%emt 0:03:30]} Qxg1+ {[%emt 0:01:40]} 32. Kf3 {[%emt 0:00:01]} Qh1+ {[%emt 0:06:49]} 33. Kf4 {[%emt 0:01:49]} g5+ {[%emt 0:01:29]} 34. Kg4 {[%emt 0:01:44]} Qe4+ {[%emt 0:02:17]} 35. f4 {[%emt 0:04:03]} h5+ {[%emt 0:01:08]} 36. Kxh5 {[%emt 0:00:26]} Qf3+ {[%emt 0:00:45]} 37. Kh6 {[%emt 0:00:12]} Bg7+ {[%emt 0:00:16]} 38. Kxg5 {[%emt 0:00:14]} Qxg3+ {[%emt 0:00:12]} 39. Kf5 {[%emt 0:00:21]} Qg6# {[%emt 0:00:18]} 1/2-1/2

[Event "Nordic Chess-ch 2019"]
[Site "Sarpsborg"]
[Date "2019.06.27"]
[Round "9.38"]
[White "Hauge, Tor Arne"]
[Black "Mirza, Raad"]
[Result "1/2-1/2"]
[ECO "A11"]
[WhiteElo "2022"]
[BlackElo "1991"]
[Annotator "NA"]
[PlyCount "105"]
[EventDate "2019.06.21"]
[EventType "swiss"]
[EventCountry "NOR"]
[SourceTitle "playchess.com"]
[Source "ChessBase"]
[SourceQuality "1"]
[TimeControl "40/5400+30:1800+30"]

1. Nf3 {[%emt 0:00:00]} d5 {[%emt 0:02:58]} 2. g3 {[%emt 0:00:57]} Nf6 {[%emt 0:02:45]} 3. Bg2 {[%emt 0:00:42]} Bf5 {[%emt 0:00:58]} 4. O-O {[%emt 0:00:50]} e6 {[%emt 0:00:17]} 5. c4 {[%emt 0:09:39]} c6 {[%emt 0:01:26]} 6. cxd5 {[%emt 0:00:59] A11: English Opening: 1...c6} exd5 {[%emt 0:00:24]} 7. Qb3 {[%emt 0:01:03]} (7. d3 Bc5 8. Qb3 Bb6 9. Nc3 O-O 10. Na4 Re8 11. Nxb6 axb6 12. Qc2 h6 13. b3 c5 14. Bb2 Nc6 15. a3 {0-1 (41) Oparin,G (2613)-Carlsen,M (2835) St Petersburg 2018}) 7... Qc7 {[%emt 0:01:51]} 8. d4 {[%emt 0:04:02]} Bd6 {[%emt 0:00:12]} 9. Qe3+ $146 {[%emt 0:09:43]} ({Predecessor:} 9. Nc3 Nbd7 10. Bd2 O-O 11. Rac1 a6 12. Nh4 Be6 13. f4 Nb6 14. f5 Bd7 15. Bg5 Nc4 16. e4 Na5 17. Qd1 Nxe4 18. Nxd5 {1-0 (18) Belus,B (1953)-Konyves,A (1691) Brno 2017}) 9... Be6 {[%emt 0:07:42]} 10. Ng5 {[%emt 0:02:32]} Qe7 {[%emt 0:00:02]} 11. Nxe6 {[%emt 0:00:14]} Qxe6 {[%emt 0:03:01]} 12. Qxe6+ {[%emt 0:10:06]} fxe6 {[%emt 0:00:25]} 13. Nc3 {[%emt 0:00:26]} O-O {[%emt 0:01:44]} 14. e4 {[%emt 0:03:57]} dxe4 {[%emt 0:00:25]} 15. Nxe4 {[%emt 0:00:13]} Nxe4 {[%emt 0:00:31]} 16. Bxe4 {[%emt 0:00:06]} Nd7 {[%emt 0:00:31]} 17. Bd2 {[%emt 0:04:49]} Nf6 {[%emt 0:00:29]} 18. Bg2 {[%emt 0:00:48]} Nd5 {[%emt 0:01:43]} 19. Rfe1 {[%emt 0:07:58]} Rae8 {[%emt 0:00:37]} 20. Re2 {[%emt 0:01:07]} Bb4 {[%emt 0:06:32]} 21. Bxd5 {[%emt 0:05:22]} Bxd2 {[%emt 0:01:59]} 22. Bxe6+ {[%emt 0:00:13]} Kh8 {[%emt 0:00:31]} 23. Rxd2 {[%emt 0:02:23]} Rxe6 {[%emt 0:00:02]} 24. Kf1 {[%emt 0:01:11]} Rd8 {[%emt 0:00:16]} 25. Re1 {[%emt 0:00:54]} Rxe1+ {[%emt 0:03:33]} 26. Kxe1 {[%emt 0:00:12]} Kg8 {[%emt 0:00:32]} 27. Ke2 {[%emt 0:01:50]} Kf7 {[%emt 0:00:02]} 28. Kd3 {[%emt 0:01:17]} g5 {[%emt 0:03:13]} 29. f4 {[%emt 0:08:03]} gxf4 {[%emt 0:00:35]} 30. Rf2 {[%emt 0:00:13]} Kg6 {[%emt 0:02:39]} 31. Rxf4 {[%emt 0:00:09]} Rd7 {[%emt 0:03:58]} 32. Kc4 {[%emt 0:01:19]} Re7 {[%emt 0:02:33]} 33. Rf2 {[%emt 0:00:09]} Rd7 {[%emt 0:00:10]} 34. b4 {[%emt 0:03:03]} Rd5 {[%emt 0:02:59]} 35. Re2 {[%emt 0:03:10]} Kf6 {[%emt 0:04:40]} 36. Re8 {[%emt 0:03:15]} a5 {[%emt 0:07:11]} 37. a3 {[%emt 0:03:38]} axb4 {[%emt 0:02:10]} 38. axb4 {[%emt 0:00:03]} Kf7 {[%emt 0:17:54]} 39. Rh8 {[%emt 0:12:55]} Kg6 {[%emt 0:01:57]} 40. Rg8+ {[%emt 0:00:00]} Kf6 {[%emt 0:02:48]} 41. Rc8 {[%emt 0:06:41]} Rd7 {[%emt 0:01:32]} 42. Rf8+ {[%emt 0:01:10]} Ke6 {[%emt 0:07:11]} 43. Rf4 {[%emt 0:00:52]} Rd5 {[%emt 0:01:31]} 44. g4 {[%emt 0:08:17]} (44. Re4+ $16 Kd6 45. h4) 44... h5 {[%emt 0:00:48]} 45. h4 {[%emt 0:00:32]} hxg4 $14 {[%emt 0:01:09]} 46. Rxg4 {[%emt 0:00:05]} Rh5 {[%emt 0:00:34]} 47. Rg5 {[%emt 0:08:53]} Rxh4 {[%emt 0:02:48]} 48. Kc5 {[%emt 0:00:11]} Rh7 {[%emt 0:05:05]} 49. Re5+ {[%emt 0:00:39]} Kd7 {[%emt 0:00:08]} 50. Kb6 {[%emt 0:03:36]} Kd6 {[%emt 0:00:02]} 51. Rg5 {[%emt 0:00:55]} Rf7 {[%emt 0:05:06]} 52. Rh5 {[%emt 0:00:29]} Rg7 {[%emt 0:01:00]} 53. Rf5 {[%emt 0:00:43]} 1/2-1/2

[Event "Nordic Chess-ch 2019"]
[Site "Sarpsborg"]
[Date "2019.06.27"]
[Round "9.39"]
[White "Lilleng, Gunnar"]
[Black "Eriksen, Oddvar"]
[Result "1/2-1/2"]
[ECO "D00"]
[WhiteElo "1485"]
[BlackElo "1520"]
[Annotator "NA RC"]
[PlyCount "56"]
[EventDate "2019.06.21"]
[EventType "swiss"]
[EventCountry "NOR"]
[SourceTitle "playchess.com"]
[Source "ChessBase"]
[SourceQuality "1"]
[TimeControl "40/5400+30:1800+30"]

1. d4 {[%emt 0:00:00]} Nf6 {[%emt 0:00:00]} 2. Bg5 {[%emt 0:00:06]} d5 {[%emt 0:00:37]} 3. c3 {[%emt 0:00:37]} e6 {[%emt 0:00:27]} 4. Nd2 {[%emt 0:00:56]} Be7 {[%emt 0:00:03]} 5. Qc2 {[%emt 0:00:58]} h6 {[%emt 0:01:20]} 6. Bh4 {[%emt 0:00:46]} Nbd7 {[%emt 0:00:31]} 7. e3 {[%emt 1:30:07]} c5 {[%emt 0:00:05]} 8. Be2 {[%emt 0:00:00]} e5 {[%emt 0:01:25]} 9. dxe5 {[%emt 0:00:00]} Nxe5 {[%emt 0:02:08]} 10. Bg3 {[%emt 0:00:00]} Nc6 {[%emt 0:00:58]} 11. Bf3 {[%emt 0:00:00]} Bg4 {[%emt 0:00:49]} 12. Qd1 {[%emt 0:00:00]} Bf5 {[%emt 0:00:50]} 13. Be2 {[%emt 0:00:00]} O-O {[%emt 0:00:33]} 14. Ngf3 {[%emt 0:00:00]} Bd6 {[%emt 0:00:31]} 15. Bxd6 {[%emt 0:00:00]} Qxd6 {[%emt 0:00:37]} 16. h3 {[%emt 0:00:00]} a6 {[%emt 0:00:34]} 17. O-O {[%emt 0:00:00]} Rae8 {[%emt 0:00:43]} 18. Re1 {[%emt 0:00:00]} Re7 {[%emt 0:00:31]} 19. Bf1 {[%emt 0:00:00]} g5 {[%emt 0:00:45]} 20. Nh2 {[%emt 0:00:00]} Qd7 {[%emt 0:01:36]} 21. Be2 {[%emt 0:00:00]} Ne5 {[%emt 0:01:16]} 22. Ndf3 {[%emt 0:00:00]} Ng6 {[%emt 0:00:46]} 23. Nf1 {[%emt 0:00:00]} g4 {[%emt 0:02:47]} 24. hxg4 {[%emt 0:00:00]} Bxg4 {[%emt 0:03:53]} 25. Ng3 {[%emt 0:00:00]} Kh7 {[%emt 0:05:39]} 26. Nh2 {[%emt 0:00:00]} Bxe2 {[%emt 0:04:41]} 27. Rxe2 {[%emt 0:00:00]} Rg8 {[%emt 0:05:56]} 28. Re1 {[%emt 0:00:00]} Rge8 {[%emt 0:06:50]} 1/2-1/2

[Event "Nordic Chess-ch 2019"]
[Site "Sarpsborg"]
[Date "2019.06.27"]
[Round "9.40"]
[White "Larsen, Bjorn"]
[Black "Heikkila, Raine"]
[Result "1-0"]
[ECO "C50"]
[WhiteElo "1680"]
[BlackElo "1663"]
[Annotator "NA RC"]
[PlyCount "60"]
[EventDate "2019.06.21"]
[EventType "swiss"]
[EventCountry "NOR"]
[SourceTitle "playchess.com"]
[Source "ChessBase"]
[SourceQuality "1"]
[TimeControl "40/5400+30:1800+30"]

1. e4 {[%emt 0:03:23]} e5 {[%emt 0:00:00]} 2. Nf3 {[%emt 0:00:05]} Nc6 {[%emt 0:00:00]} 3. Bc4 {[%emt 0:00:05]} Qf6 {[%emt 0:00:06]} 4. Nc3 {[%emt 0:01:09]} Qd8 {[%emt 0:00:48]} 5. O-O {[%emt 0:00:39]} Bc5 {[%emt 0:00:16]} 6. Ne2 {[%emt 0:00:36]} h6 {[%emt 0:00:42]} 7. Ng3 {[%emt 0:01:09]} d6 {[%emt 0:00:20]} 8. h3 {[%emt 0:03:15]} a6 {[%emt 0:00:16]} 9. c3 {[%emt 0:00:10]} Na5 {[%emt 0:00:13]} 10. Bd3 {[%emt 0:01:21]} Nc6 {[%emt 0:00:10]} 11. Bc2 {[%emt 0:01:08]} Ba7 {[%emt 0:00:34]} 12. d4 {[%emt 0:01:29]} Qf6 {[%emt 0:00:25]} 13. Be3 {[%emt 0:07:47]} g6 {[%emt 0:00:41]} 14. Qd2 {[%emt 0:02:08]} Qg7 {[%emt 0:00:35]} 15. Rad1 {[%emt 0:00:53]} Na5 {[%emt 0:03:10]} 16. b3 {[%emt 0:01:07]} Nc6 {[%emt 0:00:09]} 17. b4 {[%emt 0:02:24]} Bd7 {[%emt 0:01:26]} 18. a4 {[%emt 0:01:33]} h5 {[%emt 0:01:27]} 19. b5 {[%emt 0:02:29]} Nce7 {[%emt 0:01:28]} 20. dxe5 {[%emt 0:00:57]} Bxe3 {[%emt 0:00:43]} 21. fxe3 {[%emt 0:00:21]} Nc8 {[%emt 0:00:29]} 22. Bb3 {[%emt 0:03:11]} axb5 {[%emt 0:01:11]} 23. exd6 {[%emt 0:10:31]} cxd6 {[%emt 0:00:13]} 24. e5 {[%emt 0:04:44]} bxa4 {[%emt 0:00:30]} 25. Ba2 {[%emt 0:00:31]} h4 {[%emt 0:01:47]} 26. Ne4 {[%emt 0:02:41]} Nge7 {[%emt 0:05:10]} 27. Nf6+ {[%emt 0:03:23]} Kd8 {[%emt 0:00:32]} 28. Ng5 {[%emt 0:01:41]} Rf8 {[%emt 0:01:18]} 29. Nxd7 {[%emt 0:04:05]} Kxd7 {[%emt 0:00:12]} 30. e6+ {[%emt 0:01:13]} Kd8 {[%emt 0:00:41]} 1-0

[Event "Nordic Chess-ch 2019"]
[Site "Sarpsborg"]
[Date "2019.06.27"]
[Round "9.41"]
[White "Sather, Lars"]
[Black "Stubrud, Jan Magne"]
[Result "0-1"]
[ECO "D80"]
[WhiteElo "1730"]
[BlackElo "1681"]
[Annotator "NA RC"]
[PlyCount "90"]
[EventDate "2019.06.21"]
[EventType "swiss"]
[EventCountry "NOR"]
[SourceTitle "playchess.com"]
[Source "ChessBase"]
[SourceQuality "1"]
[TimeControl "40/5400+30:1800+30"]

1. d4 {[%emt 0:00:00]} Nf6 {[%emt 0:00:00]} 2. c4 {[%emt 0:00:00]} g6 {[%emt 0:03:06]} 3. Nc3 {[%emt 0:00:02]} d5 {[%emt 0:01:47]} 4. f3 {[%emt 0:01:20]} Nc6 {[%emt 0:07:09]} 5. cxd5 {[%emt 0:01:04]} Nxd5 {[%emt 0:00:21]} 6. e4 {[%emt 0:00:35]} Nxc3 {[%emt 0:00:47]} 7. bxc3 {[%emt 0:00:10]} e6 {[%emt 0:00:35]} 8. Be3 {[%emt 0:01:25]} Bg7 {[%emt 0:00:49]} 9. Bd3 {[%emt 0:00:35]} O-O {[%emt 0:00:35]} 10. Ne2 {[%emt 0:00:56]} b6 {[%emt 0:01:38]} 11. O-O {[%emt 0:00:31]} Bb7 {[%emt 0:00:17]} 12. Qd2 {[%emt 0:01:27]} Rc8 {[%emt 0:01:42]} 13. f4 {[%emt 0:02:25]} Ne7 {[%emt 0:01:24]} 14. f5 {[%emt 0:09:22]} exf5 {[%emt 0:04:10]} 15. exf5 {[%emt 0:00:32]} Nd5 {[%emt 0:05:38]} 16. fxg6 {[%emt 0:04:52]} fxg6 {[%emt 0:02:56]} 17. Rxf8+ {[%emt 0:00:42]} Qxf8 {[%emt 0:00:53]} 18. Bc4 {[%emt 0:01:19]} Kh8 {[%emt 0:00:57]} 19. Rf1 {[%emt 0:00:33]} Qe7 {[%emt 0:06:59]} 20. Bg5 {[%emt 0:04:47]} Qd7 {[%emt 0:00:25]} 21. Bb3 {[%emt 0:03:59]} Re8 {[%emt 0:08:01]} 22. c4 {[%emt 0:07:34]} Ne7 {[%emt 0:06:35]} 23. Rf7 {[%emt 0:07:15]} Qe6 {[%emt 0:02:10]} 24. c5 {[%emt 0:02:30]} Nd5 {[%emt 0:00:57]} 25. Rf2 {[%emt 0:02:56]} Ba6 {[%emt 0:05:26]} 26. Bxd5 {[%emt 0:03:22]} Qxd5 {[%emt 0:00:11]} 27. h4 {[%emt 0:05:10]} Bxe2 {[%emt 0:10:59]} 28. Rxe2 {[%emt 0:00:44]} Rxe2 {[%emt 0:04:13]} 29. Qxe2 {[%emt 0:00:08]} Qxd4+ {[%emt 0:00:59]} 30. Kh2 {[%emt 0:06:07]} Qe5+ {[%emt 0:01:09]} 31. Qxe5 {[%emt 0:00:48]} Bxe5+ {[%emt 0:00:03]} 32. Kh3 {[%emt 0:00:28]} bxc5 {[%emt 0:00:18]} 33. Kg4 {[%emt 0:01:24]} Kg7 {[%emt 0:04:11]} 34. Kf3 {[%emt 0:00:34]} Kf7 {[%emt 0:00:57]} 35. Ke4 {[%emt 0:00:23]} Ke6 {[%emt 0:00:13]} 36. g4 {[%emt 0:00:39]} c6 {[%emt 0:04:05]} 37. h5 {[%emt 0:02:12]} gxh5 {[%emt 0:02:12]} 38. gxh5 {[%emt 0:00:12]} c4 {[%emt 0:01:06]} 39. Be3 {[%emt 0:01:16]} c3 {[%emt 0:01:38]} 40. Bxa7 {[%emt 0:01:22]} c2 {[%emt 0:00:46]} 41. Be3 {[%emt 0:32:56]} Bb2 {[%emt 0:30:09]} 42. a4 {[%emt 0:00:13]} c1=Q {[%emt 0:01:17]} 43. Bxc1 {[%emt 0:00:11]} Bxc1 {[%emt 0:00:13]} 44. a5 {[%emt 0:00:05]} Ba3 {[%emt 0:00:59]} 45. Kd4 {[%emt 0:00:12]} Kd6 {[%emt 0:00:14]} 0-1

[Event "Nordic Chess-ch 2019"]
[Site "Sarpsborg"]
[Date "2019.06.27"]
[Round "9.42"]
[White "Nizar, Siako"]
[Black "Hanebuth, Katja"]
[Result "0-1"]
[ECO "D19"]
[WhiteElo "1209"]
[BlackElo "1463"]
[Annotator "NA RC"]
[PlyCount "98"]
[EventDate "2019.06.21"]
[EventType "swiss"]
[EventCountry "NOR"]
[SourceTitle "playchess.com"]
[Source "ChessBase"]
[SourceQuality "1"]
[TimeControl "40/5400+30:1800+30"]

1. d4 {[%emt 0:00:00]} d5 {[%emt 0:00:00]} 2. c4 {[%emt 0:00:00]} c6 {[%emt 0:00:00]} 3. Nf3 {[%emt 0:00:00]} Nf6 {[%emt 0:00:00]} 4. Nc3 {[%emt 0:00:00]} dxc4 {[%emt 0:00:00]} 5. a4 {[%emt 0:00:00]} Bf5 {[%emt 0:00:09]} 6. e3 {[%emt 0:00:07]} e6 {[%emt 0:00:09]} 7. Bxc4 {[%emt 0:00:11]} Bb4 {[%emt 0:00:13]} 8. O-O {[%emt 0:00:08]} O-O {[%emt 0:00:05]} 9. Qe2 {[%emt 0:00:17]} h6 {[%emt 0:02:36]} 10. e4 {[%emt 0:01:22]} Bh7 {[%emt 0:00:57]} 11. Bd3 {[%emt 0:00:39]} Nbd7 {[%emt 0:03:14]} 12. e5 {[%emt 0:04:24]} Bxd3 {[%emt 0:05:35]} 13. Qxd3 {[%emt 0:00:10]} Nd5 {[%emt 0:00:16]} 14. Nxd5 {[%emt 0:00:10]} cxd5 {[%emt 0:01:55]} 15. Bd2 {[%emt 0:15:58]} Be7 {[%emt 0:08:21]} 16. Rfc1 {[%emt 0:06:00]} Nb6 {[%emt 0:02:34]} 17. b3 {[%emt 0:02:39]} Rc8 {[%emt 0:02:21]} 18. Rc2 {[%emt 0:00:25]} Qd7 {[%emt 0:00:23]} 19. a5 {[%emt 0:14:03]} Rxc2 {[%emt 0:05:29]} 20. Qxc2 {[%emt 0:00:52]} Rc8 {[%emt 0:01:48]} 21. Qb2 {[%emt 0:01:00]} Na8 {[%emt 0:00:26]} 22. b4 {[%emt 0:01:19]} Nc7 {[%emt 0:04:10]} 23. b5 {[%emt 0:03:53]} Nxb5 {[%emt 0:03:26]} 24. Rb1 {[%emt 0:00:51]} a6 {[%emt 0:00:45]} 25. Ne1 {[%emt 0:05:05]} Rc4 {[%emt 0:02:13]} 26. Nc2 {[%emt 0:00:20]} Qc7 {[%emt 0:06:48]} 27. Rc1 {[%emt 0:00:42]} Bg5 {[%emt 0:03:59]} 28. f4 {[%emt 0:01:12]} Be7 {[%emt 0:02:10]} 29. Kf2 {[%emt 0:00:35]} Nc3 {[%emt 0:08:00]} 30. Ne3 {[%emt 0:04:38]} Ne4+ {[%emt 0:04:01]} 31. Ke2 {[%emt 0:05:59]} Rxc1 {[%emt 0:00:28]} 32. Bxc1 {[%emt 0:00:48]} Qc6 {[%emt 0:01:28]} 33. f5 {[%emt 0:03:16]} Qb5+ {[%emt 0:00:58]} 34. Qxb5 {[%emt 0:00:47]} axb5 {[%emt 0:00:08]} 35. Kd3 {[%emt 0:01:20]} Kf8 {[%emt 0:00:56]} 36. Kc2 {[%emt 0:00:27]} Bb4 {[%emt 0:00:45]} 37. Kb3 {[%emt 0:00:39]} Bxa5 {[%emt 0:00:10]} 38. Ba3+ {[%emt 0:01:12]} b4 {[%emt 0:00:56]} 39. Bxb4+ {[%emt 0:01:01]} Bxb4 {[%emt 0:00:02]} 40. Kxb4 {[%emt 0:00:09]} Ke7 {[%emt 0:04:00]} 41. Kb5 {[%emt 0:30:38]} Nd2 {[%emt 0:31:02]} 42. g4 {[%emt 0:06:57]} Nf3 {[%emt 0:01:41]} 43. Kb6 {[%emt 0:01:50]} Nxd4 {[%emt 0:00:16]} 44. Kxb7 {[%emt 0:00:05]} Nf3 {[%emt 0:00:14]} 45. fxe6 {[%emt 0:01:30]} fxe6 {[%emt 0:00:35]} 46. Kc6 {[%emt 0:01:24]} Nxe5+ {[%emt 0:01:08]} 47. Kc5 {[%emt 0:00:14]} Kf6 {[%emt 0:00:49]} 48. h4 {[%emt 0:01:18]} Nf3 {[%emt 0:00:34]} 49. h5 {[%emt 0:01:13]} Ke5 {[%emt 0:00:48]} 0-1